Cogmind - Beta 13 @@@ ROGUE MODE // 2024.05.12 @ 03:02:26 Player: CanadianCogs Result: Destroyed by C-17 Slicer with Blade Saw Performance ------------- Evolutions (2) 1000 Regions Visited (5) 1000 Robots Destroyed (37) 185 Value Destroyed (992) 992 Prototype IDs (1) 20 Alien Tech Used (0) 0 Bonus (189) 189 TOTAL SCORE: 3386 Bonus ------- Follower Combat Kills 25 Entered Garrisons 200 Friendly Fire -36 Cogmind --------- Core Integrity 0/550 Matter 265/300 Energy 99/100 System Corruption 14% Temperature Cool (0) Movement Core (50) Location -8/Garrison Parts ------- > --- POWER (1) -------- (None) > --- PROPULSION (4) --- (None) > --- UTILITY (2) ------ Targeting Computer Advanced Targeting Computer > --- WEAPON (4) ------- Hammer > --- INVENTORY (5) ---- Improved Heat Sink High-capacity Storage Unit Seismic Detector Hardlight Generator Peak State ------------ > --- POWER ------------ Improved Deuterium Engine > --- PROPULSION ------- Aluminum Leg Carbon-fiber Leg Carbon-fiber Leg Carbon-fiber Leg > --- UTILITY ---------- Targeting Computer Advanced Targeting Computer > --- WEAPON ----------- Particle Gun Bore Cannon Hammer > --- INVENTORY -------- Aluminum Leg Improved Heat Sink High-capacity Storage Unit Seismic Detector Hardlight Generator [Rating: 26] Favorites ----------- Power Light Ion Engine Engine Light Ion Engine Power Core Light Nuclear Core Propulsion Compact Wheel Treads Light Treads Leg Carbon-fiber Leg Wheel Compact Wheel Hover Unit Hover Unit Flight Unit Flight Unit Utility Seismic Detector Device Seismic Detector Processor Advanced Targeting Computer Protection Medium Armor Plating Weapon Heavy Hammer Energy Gun Improved EM Shotgun Ballistic Gun Light Assault Rifle Ballistic Cannon Bore Cannon Impact Weapon Heavy Hammer Build | -11 -10 -9 -9 -8 -8 ------- Run | Yrd Mat Mat Min Mat Gar Slots Evolved 4 | . . 2 . 2 . Power . | . . . . . . Propulsion 2 | . . . . 2 . Utility . | . . . . . . Weapon 2 | . . 2 . . . Parts Attached 53 | 11 6 4 9 4 19 Power 7 | 1 . . 2 1 3 Engine 6 | 1 . . 2 1 2 Core 1 | . . . . . 1 Reactor . | . . . . . . Propulsion 20 | 6 1 . 3 2 8 Treads 2 | 2 . . . . . Leg 8 | . . . . . 8 Wheel 7 | 4 . . 2 1 . Hover 1 | . 1 . . . . Flight 2 | . . . 1 1 . Utility 10 | 2 2 . 2 1 3 Device 5 | 2 . . 2 . 1 Storage . | . . . . . . Processor 2 | . . . . 1 1 Hackware . | . . . . . . Protection 3 | . 2 . . . 1 Artifact . | . . . . . . Weapon 16 | 2 3 4 2 . 5 Energy Gun 6 | . 1 . 2 . 3 Energy Cannon . | . . . . . . Ballistic Gun 4 | 2 2 . . . . Ballistic Cannon 1 | . . . . . 1 Launcher . | . . . . . . Special Weapon . | . . . . . . Impact Weapon 5 | . . 4 . . 1 Slashing Weapon . | . . . . . . Piercing Weapon . | . . . . . . Special Melee Weapon . | . . . . . . Unidentified Prototypes 1 | . . . 1 . . Corrupted Parts 4 | . . . . . 4 System Corruption 12 | . . . . . 12 Parts Lost 32 | . 1 4 6 . 21 Power 5 | . . 1 1 . 3 Propulsion 13 | . 1 2 1 . 9 Utility 4 | . . 1 1 . 2 Weapon 10 | . . . 3 . 7 Highest Loss Streak 8 | . 1 4 5 . 8 To Critical Strikes . | . . . . . . Average Slot Usage (%) 79 | . 88 91 74 83 77 Engine 8 | . 14 9 8 9 6 Leg 8 | . . . . . 27 Wheel 11 | . 15 7 16 25 3 Hover 1 | . 3 10 . . . Device 10 | . 16 . 14 18 2 Processor 4 | . . . . . 14 Protection 3 | . 11 20 . . . Energy Gun 7 | . . . 9 18 9 Ballistic Gun 3 | . 25 . . . . Ballistic Cannon 1 | . . . . . 3 Impact Weapon 16 | . . 44 25 9 8 Naked Turns . | . . . . . . Heaviest Build 31 | 9 25 31 19 16 24 Greatest Support 55 | 40 32 16 32 48 55 Greatest Overweight (x) 6 | 1 1 6 6 . 1 Average Overweight (x) . | . . 1 . . . Largest Inventory Capacity 5 | 5 5 5 5 5 5 Average Capacity 5 | 5 5 5 5 5 5 Most Carried 5 | 4 5 4 4 5 5 Average Carried 2 | . 2 1 1 3 4 Final Capacity 5 | 5 5 5 5 5 5 Final Carried 5 | . 5 3 2 5 4 Class Distribution -------------------- 56% | Mutant 43% | Scavenger-Mutant Dominant Class ---------------- Mutant | -10/Materials Mutant | -9/Materials Mutant | -9/Mines Mutant | -8/Materials Scavenger-Mutant | -8/Garrison Resources | -11 -10 -9 -9 -8 -8 ----------- Run | Yrd Mat Mat Min Mat Gar Matter Collected 739 | 268 111 92 80 . 188 Remotely . | . . . . . . Salvage Created 1411 | 110 151 220 379 . 551 Parts 60 | 10 8 6 18 . 18 Haulers Intercepted 1 | . . 1 . . . Recyclers Shooed . | . . . . . . Parts Field Recycled . | . . . . . . Retrieved Matter . | . . . . . . Parts Self-Destructed . | . . . . . . Prevented . | . . . . . . Kills | -11 -10 -9 -9 -8 -8 ------- Run | Yrd Mat Mat Min Mat Gar Combat Hostiles Destroyed 26 | . 3 3 9 . 11 Melee 11 | . . 2 7 . 2 Guns 6 | . 3 . . . 3 Cannons 2 | . . . . . 2 Classes Destroyed 9 | 2 2 2 1 . 2 Tunneler 3 | 3 . . . . . Hauler 1 | . . 1 . . . Recycler 5 | 1 . 1 3 . . Watcher 1 | . 1 . . . . Swarmer 7 | . . . 7 . . Grunt 15 | . 3 2 2 . 8 Sentry 2 | . . 1 . . 1 Hunter 2 | . . . . . 2 Zionite 1 | . . . . . 1 Best Kill Streak 4 | 2 3 4 3 . 3 Combat Bots Only 3 | . 3 2 3 . 3 Max Kills in Single Turn 2 | 1 1 1 2 . 1 Gunslinging . | . . . . . . Exploded . | . . . . . . Melee 2 | . . 1 2 . 1 Uniques/NPCs Destroyed . | . . . . . . Combat | -11 -10 -9 -9 -8 -8 -------- Run | Yrd Mat Mat Min Mat Gar Hostile Shots Fired 367 | . 23 55 117 . 172 Missed 85 | . 8 12 25 . 40 Damage Taken 3614 | . 202 503 765 . 2144 Core 966 | . 41 81 276 . 568 Absorbed by Shields . | . . . . . . Core Remaining (%) 64 | 100 83 . 10 . . Volleys Fired 68 | 15 16 . 1 . 36 Largest 3 | 2 2 . 2 . 3 Hottest 140 | 40 46 . 90 . 140 Shots Fired 117 | 30 32 . 2 . 53 Gun 108 | 30 32 . 2 . 44 Cannon 9 | . . . . . 9 Launcher . | . . . . . . Special . | . . . . . . Kinetic 71 | 30 32 . . . 9 Thermal 25 | . . . . . 25 Explosive . | . . . . . . Electromagnetic 21 | . . . 2 . 19 Robot Hit Streak 11 | 6 8 . 1 . 11 Robot Miss Streak 4 | 2 4 . 2 . 2 Penetration Max . | . . . . . . Secondary Targets 2 | . . . . . 2 Max Gunslinging Chain 1 | . . . . . 1 Shots Hit Robots 134 | 22 22 15 25 . 50 Core Hits 45 | 8 9 2 5 . 21 Critical Kills 4 | . . . 1 . 3 Critical Parts Destroyed 9 | 1 . 2 4 . 2 Critical Strikes 14 | 1 . 2 5 . 6 Burn 1 | . . . . . 1 Destroy 3 | 1 . . . . 2 Smash 10 | . . 2 5 . 3 Melee Attacks 69 | . . 20 37 . 12 Impact 69 | . . 20 37 . 12 Slashing . | . . . . . . Piercing . | . . . . . . Sneak Attacks 4 | . . 2 2 . . Combat Hostiles . | . . . . . . Follow-up Attacks 14 | . . 8 6 . . Damage Inflicted 3071 | 178 189 614 1061 . 1029 Guns 1032 | 178 189 . 12 . 653 Cannons 134 | . . . . . 134 Explosions . | . . . . . . Melee 1887 | . . 614 1049 . 224 Ramming 18 | . . . . . 18 Kinetic 501 | 178 189 . . . 134 Thermal 330 | . . . . . 330 Explosive . | . . . . . . Electromagnetic 335 | . . . 12 . 323 Impact 1887 | . . 614 1049 . 224 Slashing . | . . . . . . Piercing . | . . . . . . Highest Corruption 14 | . . . . . 14 Average Corruption 7 | . . . . . 7 Corruption Purged . | . . . . . . Corruption Blocked . | . . . . . . Effects 15 | . . . . . 15 Message Errors 3 | . . . . . 3 Matter Fused 4 | . . . . . 4 Heat Flow Errors 1 | . . . . . 1 Energy Discharges 3 | . . . . . 3 Parts Fused 1 | . . . . . 1 Data Loss (major) 1 | . . . . . 1 Misdirections 1 | . . . . . 1 Weapon Failures 1 | . . . . . 1 Overload Shots . | . . . . . . Overflow Damage 584 | . . 216 287 . 81 Projectiles . | . . . . . . Explosions . | . . . . . . Melee 584 | . . 216 287 . 81 Knockbacks 11 | . . 4 7 . . Impact 10 | . . 4 6 . . Kinetic . | . . . . . . Secondary 1 | . . . 1 . . Self-Inflicted Damage . | . . . . . . Shots . | . . . . . . Rammed . | . . . . . . Targets Rammed 9 | . . . . . 9 Kicked 9 | . . . . . 9 Crushed . | . . . . . . Highest Temperature 338 | . 33 . . . 338 Average Temperature 109 | . 12 . . . 135 Received Heat Transfer 1203 | . 117 240 63 . 783 Effects 1 | . . . . . 1 Damage (minor) 1 | . . . . . 1 Siege Activations . | . . . . . . Robots Corrupted 2 | . . . 1 . 1 Combat Hostiles 1 | . . . . . 1 Parts Fried 12 | . . 2 3 . 7 Impact Corruptions 26 | . . 7 16 . 3 Robots Melted 1 | . . . . . 1 Combat Hostiles 1 | . . . . . 1 Parts Melted 1 | . . . . . 1 Heat Transferred 888 | . . . . . 888 Parts Sabotaged . | . . . . . . Parts Stolen . | . . . . . . Parts Stripped . | . . . . . . Power Chain Reactions . | . . . . . . Alert | -11 -10 -9 -9 -8 -8 ------- Run | Yrd Mat Mat Min Mat Gar Peak Influence 264 | 20 105 146 264 28 250 Initial 45 | . 13 44 45 28 18 Average 109 | 8 83 99 143 28 114 Maximum Alert Level 1 | . . . 1 . 1 Low Security (%) 78 | 100 100 100 58 100 83 Level 1 21 | . . . 41 . 16 Level 2 . | . . . . . . Level 3 . | . . . . . . Level 4 . | . . . . . . Level 5 . | . . . . . . High Security . | . . . . . . Max Security . | . . . . . . Squads Dispatched 4 | . 1 2 . 1 . Investigation 2 | . . 1 . 1 . Extermination . | . . . . . . Reinforcement 2 | . 1 1 . . . Assault . | . . . . . . Garrison . | . . . . . . Intercept . | . . . . . . Searches Triggered . | . . . . . . Construction Impeded . | . . . . . . Haulers Reinforced . | . . . . . . Active Scanning Responses . | . . . . . . Cargo Convoy Interrupts . | . . . . . . Stealth | -11 -10 -9 -9 -8 -8 --------- Run | Yrd Mat Mat Min Mat Gar Distress Signals . | . . . . . . Communications Jammed . | . . . . . . Distress Signals . | . . . . . . Times Spotted 53 | . 8 6 14 . 25 Peak Tracking Total 7 | . 3 3 4 . 7 Tactical Retreats 2 | . . 1 1 . . Traps | -11 -10 -9 -9 -8 -8 ------- Run | Yrd Mat Mat Min Mat Gar Traps Triggered 3 | . . 1 . . 2 Indirectly . | . . . . . . Trap Hack Attempts . | . . . . . . Triggered . | . . . . . . Disarmed . | . . . . . . Reprogrammed . | . . . . . . Reused . | . . . . . . Traps Extracted . | . . . . . . Installed . | . . . . . . Triggered . | . . . . . . Machines | -11 -10 -9 -9 -8 -8 ---------- Run | Yrd Mat Mat Min Mat Gar Machines Disabled 1 | . . 1 . . . Max in Single Turn 1 | . . 1 . . . Machines Repaired . | . . . . . . Machines Dismantled . | . . . . . . Machines Sabotaged . | . . . . . . Overloaded Fab Kills . | . . . . . . Hacking | -11 -10 -9 -9 -8 -8 --------- Run | Yrd Mat Mat Min Mat Gar Machines Accessed 5 | . . . . 2 3 Terminals 3 | . . . . . 3 Fabricators . | . . . . . . Repair Stations . | . . . . . . Recycling Units 1 | . . . . 1 . Scanalyzers . | . . . . . . Garrison Access 1 | . . . . 1 . Total Hacks 14 | . . . . 5 9 Successful 4 | . . . . 3 1 Failed 10 | . . . . 2 8 Catastrophic 1 | . . . . . 1 Database Lockouts . | . . . . . . Manual 6 | . . . . . 6 Terminals 9 | . . . . . 9 Fabricators . | . . . . . . Repair Stations . | . . . . . . Recycling Units 2 | . . . . 2 . Scanalyzers . | . . . . . . Garrison Access 3 | . . . . 3 . Terminal Hacks . | . . . . . . Fabricator Hacks . | . . . . . . Repair Station Hacks . | . . . . . . Recycling Unit Hacks 1 | . . . . 1 . Retrieve Components 1 | . . . . 1 . Scanalyzer . | . . . . . . Garrison Access Hacks 2 | . . . . 2 . Unlock Access 1 | . . . . 1 . Coupler Status 1 | . . . . 1 . Unauthorized Hacks 1 | . . . . . 1 Terminals 1 | . . . . . 1 Override 1 | . . . . . 1 Fabricators . | . . . . . . Repair Stations . | . . . . . . Recycling Units . | . . . . . . Scanalyzers . | . . . . . . Garrison Access . | . . . . . . Data Cores Recovered . | . . . . . . Used . | . . . . . . Hacking Detections 3 | . . . . 1 2 Full Trace Events 3 | . . . . 1 2 Feedback Events . | . . . . . . Feedback Blocked . | . . . . . . Robot Schematics Acquired . | . . . . . . Robots Built . | . . . . . . Authchips . | . . . . . . Time . | . . . . . . Total Robot Build Rating . | . . . . . . Part Schematics Acquired . | . . . . . . Parts Built . | . . . . . . Authchips . | . . . . . . Time . | . . . . . . Total Part Build Rating . | . . . . . . Parts Repaired . | . . . . . . Time . | . . . . . . Parts Recycled . | . . . . . . Recycled Matter . | . . . . . . Retrieved Matter . | . . . . . . Retrieved Components 2 | . . . . 2 . Parts Scanalyzed . | . . . . . . Part Schematics Acquired . | . . . . . . Parts Damaged . | . . . . . . Bothacking | -11 -10 -9 -9 -8 -8 ------------ Run | Yrd Mat Mat Min Mat Gar Used RIF Installer . | . . . . . . Robots Hacked . | . . . . . . Non-combat . | . . . . . . Combat . | . . . . . . Robot Hacks Applied . | . . . . . . Relay Couplers Released . | . . . . . . Fabnet Peak Effective % . | . . . . . . Robots Rewired . | . . . . . . Allies Hacked . | . . . . . . Hacks Repelled . | . . . . . . Allies | -11 -10 -9 -9 -8 -8 -------- Run | Yrd Mat Mat Min Mat Gar Total Allies 3 | . . . 2 . 1 Largest Group 2 | . . . 2 1 1 Highest-Rated Group 43 | . . . 43 12 39 Highest-Rated Ally 39 | . . . 31 12 39 Total Orders . | . . . . . . Ally Attacks 11 | . . . 5 . 6 Total Damage 140 | . . . 84 . 56 Kills 1 | . . . 1 . . Allies Corrupted . | . . . . . . Allies Melted 1 | . . . 1 . . Intel | -11 -10 -9 -9 -8 -8 ------- Run | Yrd Mat Mat Min Mat Gar Robot Analysis Total . | . . . . . . Derelict Logs Recovered 1 | . . . 1 . . Drone Launches . | . . . . . . Drone Recoveries . | . . . . . . Exploration | -11 -10 -9 -9 -8 -8 ------------- Run | Yrd Mat Mat Min Mat Gar Turns Passed 1743 | 117 235 121 683 74 513 Spaces Moved 1146 | 56 158 48 506 61 317 Core 110 | 21 . 3 39 . 47 Treads 9 | 9 . . . . . Legs 252 | . . . . . 252 Wheels 752 | 26 158 37 452 61 18 Hover 8 | . . 8 . . . Flight 15 | . . . 15 . . Fastest Speed 50 | 50 100 115 100 100 50 Average Speed 112 | 95 107 163 114 100 108 Slowest Speed 360 | 160 115 360 350 100 120 Overloaded Moves . | . . . . . . Propulsion Burnouts . | . . . . . . Robots Hopped . | . . . . . . Cave-ins Triggered . | . . . . . . Exploration Rate (%) 30 | 6 27 9 90 6 42 Regions Visited 5 Branch Regions 1 Pre-discovered Areas 1 | . . . 1 . . Known Exits Taken 1 | . . . . 1 . Unknown Exits Taken 4 | 1 1 1 1 . . Scrap Searched 1 | . . . 1 . . Spaces Dug . | . . . . . . Terrain Destroyed 4 | . . . . . 4 Melee . | . . . . . . Projectile 4 | . . . . . 4 AOE . | . . . . . . Terrain Rammed . | . . . . . . Walls Destroyed . | . . . . . . Machines Disabled . | . . . . . . Actions | -11 -10 -9 -9 -8 -8 --------- Run | Yrd Mat Mat Min Mat Gar Total 1401 | 96 197 69 560 74 405 Wait 18 | . 4 . 11 . 3 Move 1142 | 55 157 47 505 61 317 Hop . | . . . . . . Pick Up 41 | 11 9 3 8 7 3 Fast Attach 14 | . 2 . . . 12 Attach 28 | 9 2 2 9 2 4 Detach . | . . . . . . Swap 11 | 2 2 2 . 2 3 Drop 18 | 4 5 3 . 2 4 Fire 68 | 15 16 . 1 . 36 Melee 50 | . . 12 26 . 12 Ram . | . . . . . . Kick 9 | . . . . . 9 Crush . | . . . . . . Escape Stasis 2 | . . . . . 2 Rewire . | . . . . . . Trap . | . . . . . . Miscellaneous . | . . . . . . Route ------- -11/Scrapyard -10/Materials -9/Materials -9/Mines -8/Materials -8/Garrison (discovered 3 exits: *Mat x3) History --------- Turn | Location | Event 11 | -11/Scrapyard | Discovered new exit (range 16) 118 | -11/Scrapyard | Entered Materials 313 | -10/Materials | Build established: Mutant 341 | -10/Materials | Discovered new exit (range 11) 353 | -10/Materials | Entered another Materials area 353 | -9/Materials | Evolved 2 slots: Weapon x2 423 | -9/Materials | Discovered new exit (range 16) 474 | -9/Materials | Entered Mines 501 | -9/Mines | Core integrity fell below 50% 507 | -9/Mines | Lost 5 parts (1p2n2u) 614 | -9/Mines | Core integrity fell below 20% 725 | -9/Mines | Learned location of Zion (-7) 1134 | -9/Mines | Discovered new exit (range 5) 1155 | -9/Mines | Build established: Scavenger-Mutant 1157 | -9/Mines | Entered Materials 1157 | -8/Materials | Accompanied by 1 ally 1157 | -8/Materials | Evolved 2 slots: Propulsion x2 1231 | -8/Materials | Identified exit to Garrison 1231 | -8/Materials | Entered Garrison 1231 | -8/Garrison | Accompanied by 1 ally 1309 | -8/Garrison | Lost 6 parts (1p3n2w) 1317 | -8/Garrison | Triggered checkpoint 1354 | -8/Garrison | Rescued a captive Derelict 1363 | -8/Garrison | Rescued a captive Derelict 1384 | -8/Garrison | Lost 3 parts (1u2w) 1502 | -8/Garrison | Discovered new exit (range 10) 1595 | -8/Garrison | Triggered checkpoint 1600 | -8/Garrison | Core integrity fell below 50% 1658 | -8/Garrison | Identified exit to Materials 1698 | -8/Garrison | System corruption reached 10% 1715 | -8/Garrison | Triggered checkpoint 1719 | -8/Garrison | Core integrity fell below 20% 1744 | -8/Garrison | Destroyed by C-17 Slicer with Blade Saw Last Messages --------------- 01694_ H-55 Commando destroyed. 01694_ Switching to secondary target: H-55 Commando. 01697_ Penetrated by Slug. 01697_ Lgt. Nuclear Core destroyed. 01697_ Integrated Corrupted Aluminum Leg (+7). 01698_ H-55 Commando suffers critical hit (Burn). 01700_ Slug penetrates Wall. 01703_ Penetrated by Slug. 01704_ Carbon-fiber Leg destroyed. 01705_ Particle Gun destroyed. 01706_ H-55 Commando heat damages core (-8). 01709_ Overheating: Particle Gun damaged (-2). 01711_ Aluminum Leg destroyed. 01712_ System corrupted: Matter fused (-7). 01715_ Beams of light sweep through the air. An alarm sounds. 01717_ Particle Gun destroyed. 01720_ Aluminum Leg destroyed. 01740_ C-17 Slicer knocked back. 01740_ Knocked back. 01743_ System corrupted: Substantial component data lost. Map ----- +----------------------------------------------------+ | ?????????????????????????????????????????????????? | | ?????????????????????????????????????????????????? | | ?????????????????????????????????????????????????? | | ?????????????????????????????????????????????????? | | ??????????????????????#####??????????????????????? | | ?????????????????????? #??????????????????????? | | ??????????????????????< #??????????????????????? | | ?????????????????????? #??????????????????????? | | ??????????????????????# #??????????????????????? | | ??????????????????????# #??????????????????????? | | ?????????????????????? #??????????????????????? | | ??????????????????????# #??????????????????????? | | ??????????????????????# #??????????????????????? | | ??????????????????????# #??????????????????????? | | ??????????????????????# #??????????????????????? | | #????????????????????## ##?????????????????????? | | #????????????????????? #?????????????????????? | | #?????????????????????# Y#??????????????????????? | | #?????????????????????# #??????????????????????? | | #?????????????????????# #??????????????????????? | | #?????????????????????# #??????????????????????? | | ####??????????????????# #??????????????????????? | | #"#??????????????????# #??????????????????????? | | "#??????????????????# c#??????????????????????? | | "#??????????????????# c#??????????????????????? | | "#??????????????????# @#??????????????????????? | | #"#??????????????????# #??????????????????????? | | ###??????????????????# #??????????????????????? | | ##???????????????????# #??????????????????????? | | T#???????????????????# #??????????????????????? | | ##???????????????????# #??????????????????????? | | #???????????????###### ###### #???????????????? | | #???????????????# #???????????????? | | #???????????????# #### ########???????????????? | | #???????????????# #??# #??????????????????????? | | #???????????????# #?## #??????????????????????? | | #######?????????# #?#C #??????????????????????? | | ## #?????????# #?#C #??????????????????????? | | ## ########### #### #??????????????????????? | | ^ #??????????????????????? | | ^^ #??????????????????????? | | ^ #??????????????????????? | | %## ## ###############??????????????????????? | | !## ## #????????????????????????????????????? | | "????????????????????????????????????? | | "????????????????????????????????????? | | "????????????????????????????????????? | | "????????????????????????????????????? | | ## ## #????????????????????????????????????? | | ## ## #????????????????????????????????????? | +----------------------------------------------------+ Best States ------------- Heat Dissipation 45 Energy Generation 16 Energy Capacity 290 Matter Stores 300 Matter Capacity 300 Sight Range 16 Terrain Scan Range 16 Terrain Scan Density 10 Armor Coverage 450 Evasion (%) 59 Targeting Accuracy 13 Recoil Reduction 2 Item Schematics ----------------- None Robot Schematics ------------------ None Fabricated ------------ Nothing Alien Tech Used ----------------- None Achievements -------------- Deadly Force Challenges ------------ None Game ------ Seed FlakShrapnelWarhead Manual? 0 Play Time 00:25:38 Cumulative 24.3 hours Start 2024.05.12 @ 02:35:22 End 2024.05.12 @ 03:02:26 Sessions 1 Manual Loads 0 Difficulty Rogue Special Mode None Game No. 36 Rogue 36 Adventurer 0 Explorer 0 Win Type - Total 0 Types 0/0/0/0/0/0/0/0/0 Lore% 18 Gallery% 23 Achievement% 23 Wizard Run 0 Options --------- Layout 0 ASCII 0 Keyboard 0 Movement Mouse Keybinds 0 Fullscreen 2 Font 18/SmallcapsGlow Map View 38x25 Zoom Use 99% Tactical HUD 1 Map Filters NONE Filters NONE Steam 1 RUN: 11f7d973-7ebb-4912-a387-5b1298ae14da